bitfinex/quotes_BTCUSD_20260127
["timestamp","ask_amount","ask_price","bid_price","bid_amount"]
[1769506187178,0.02494096,88045.0,88028.0,0.05905903]
[1769506187363,0.02703755,88044.0,88028.0,0.05905903]
[1769506188549,0.02494096,88039.0,88028.0,0.05905903]
[1769506188956,0.33840441,88040.0,88025.0,0.0001464]
[1769506188957,0.02494096,88032.0,88025.0,0.0001464]
[1769506189123,0.2311775,88029.0,88025.0,0.0001464]
[1769506189374,0.02494096,88029.0,88025.0,0.0001464]
[1769506190698,0.02561185,88029.0,88025.0,0.0001464]
[1769506190922,0.02494096,88027.0,88025.0,0.0001464]
[1769506195193,0.04930759,88029.0,88025.0,0.0001464]
[1769506196542,0.02369574,88028.0,88025.0,0.0001464]
[1769506196755,0.02369574,88027.0,88025.0,0.0001464]
[1769506197254,0.33840441,88035.0,88025.0,0.0001464]
[1769506197255,0.22141832,88026.0,88025.0,0.0001464]
[1769506197454,0.22141832,88026.0,88022.0,0.05905903]
[1769506197455,0.02369574,88025.0,88022.0,0.03644039]
[1769506197634,0.02369574,88025.0,88022.0,0.01367327]
[1769506197843,0.02369574,88025.0,88011.0,0.2070991]
[1769506198248,0.02369574,88025.0,88011.0,0.21846131]
[1769506198498,0.02369574,88025.0,88009.0,0.0001285]
[1769506199001,0.02369574,88025.0,88010.0,0.33840441]
[1769506199220,0.02369574,88025.0,88009.0,0.0001285]
[1769506199451,0.02369574,88025.0,88009.0,0.2174544]
[1769506201905,0.02369574,88025.0,88009.0,0.24037889]
[1769506202112,0.02369574,88025.0,88012.0,0.01136208]
[1769506202319,0.22141832,88027.0,88012.0,0.2173259]
[1769506202531,0.02369574,88030.0,88012.0,0.22868798]
[1769506202727,0.00209659,88029.0,88012.0,0.22868798]
[1769506202934,0.00209659,88029.0,88012.0,0.2173259]
[1769506203336,0.02369574,88042.0,88022.0,0.05905903]
[1769506203559,0.11668,88039.0,88022.0,0.27638493]
[1769506203760,0.00209659,88038.0,88022.0,0.28774572]
[1769506204195,0.00209659,88038.0,88022.0,0.27638493]
[1769506204404,0.02579233,88038.0,88022.0,0.27638493]
[1769506204592,0.22351491,88038.0,88022.0,0.27638493]
[1769506204831,0.22141832,88037.0,88022.0,0.05905903]
[1769506205010,0.02579233,88036.0,88022.0,0.05905903]
[1769506205207,0.07022951,88035.0,88022.0,0.05905903]
[1769506205411,0.00209659,88034.0,88022.0,0.05905903]
[1769506206214,0.07022951,88035.0,88022.0,0.07041982]
[1769506206418,0.07022951,88035.0,88022.0,0.05905903]
[1769506207142,0.00209659,88034.0,88022.0,0.05905903]
[1769506208318,0.00209659,88034.0,88022.0,0.07041982]
[1769506208518,0.07725246,88033.0,88022.0,0.07041982]
[1769506208667,0.00209659,88032.0,88022.0,0.05905903]
[1769506209218,0.00209659,88035.0,88022.0,0.05905903]
[1769506209947,0.00209659,88035.0,88022.0,0.07041982]
[1769506210084,0.02369574,88036.0,88022.0,0.07041982]
[1769506210085,0.02369574,88036.0,88023.0,0.01136066]
[1769506210516,0.02369574,88036.0,88025.0,0.2173259]
[1769506210517,0.00209659,88036.0,88025.0,0.2173259]
[1769506210687,0.0001637,88053.0,88036.0,0.21844844]
[1769506211075,0.33840441,88050.0,88036.0,0.2173259]
[1769506213095,0.33840441,88050.0,88025.0,0.2173259]
[1769506213096,0.02369574,88048.0,88025.0,0.2173259]
[1769506213368,0.02369574,88048.0,88036.0,0.05905903]
[1769506221639,0.02369574,88048.0,88036.0,0.28638563]
[1769506222427,0.0001637,88053.0,88049.0,0.2273266]
[1769506222767,0.0001637,88053.0,88043.0,0.01135808]
[1769506222971,0.0001637,88053.0,88044.0,0.2273266]
[1769506226918,0.0001637,88053.0,88044.0,0.23868455]
[1769506227489,0.0001637,88053.0,88046.0,0.01135769]
[1769506228679,0.0001637,88053.0,88044.0,0.2273266]
[1769506229025,0.0001637,88053.0,88044.0,0.23868455]
[1769506231840,0.0001637,88053.0,88045.0,0.01135782]
[1769506232506,0.0001637,88053.0,88044.0,0.23868455]
[1769506232711,0.0001637,88053.0,88044.0,0.2273266]
[1769506233322,0.0001637,88053.0,88044.0,0.23868455]
[1769506235499,0.0001637,88053.0,88044.0,0.2273266]
[1769506235988,0.0001637,88053.0,88044.0,0.23868455]
[1769506236321,0.0001637,88053.0,88046.0,0.01135769]
[1769506236530,0.0001637,88053.0,88045.0,0.01135782]
[1769506236743,0.0001637,88053.0,88046.0,0.01135769]
[1769506238079,0.0001637,88053.0,88045.0,0.01135782]
[1769506238508,0.0001637,88053.0,88046.0,0.01135769]
[1769506240346,0.0001637,88053.0,88047.0,0.01135757]
[1769506240568,0.0001637,88053.0,88046.0,0.01135769]
[1769506240773,0.0001637,88053.0,88045.0,0.01135782]
[1769506241309,0.0001637,88053.0,88046.0,0.01135769]
[1769506241513,0.0001637,88053.0,88039.0,0.22170393]
[1769506241890,0.0001637,88053.0,88030.0,0.01135976]
[1769506241891,0.03184593,88046.0,88030.0,0.01135976]
[1769506242101,0.00907636,88039.0,88022.0,0.07041982]
[1769506242314,0.03184593,88038.0,88024.0,0.01136053]
[1769506242763,0.03184593,88038.0,88025.0,0.0113604]
[1769506243207,0.03184593,88038.0,88026.0,0.01136027]
[1769506243869,0.0318676,88037.0,88024.0,0.01136053]
[1769506244518,0.0318676,88037.0,88023.0,0.01136066]
[1769506247294,0.0318676,88037.0,88022.0,0.07138131]
[1769506247509,0.0318676,88037.0,88023.0,0.01136066]
[1769506247660,0.0318676,88037.0,88022.0,0.07138131]
[1769506248252,0.0318676,88037.0,88023.0,0.01136066]
[1769506248456,0.05864763,88037.0,88022.0,0.06002052]
[1769506248659,0.02993104,88035.0,88022.0,0.07041982]
[1769506248901,0.02993104,88035.0,88023.0,0.01136066]
[1769506252699,0.02993104,88035.0,88025.0,0.0113604]
[1769506253279,0.02993104,88035.0,88028.0,0.01136002]
[1769506253671,0.21620426,88042.0,88031.0,0.01135963]
[1769506253672,0.0234151,88041.0,88031.0,0.01135963]
[1769506254885,0.0234151,88041.0,88032.0,0.0113595]
[1769506255295,0.0234151,88041.0,88031.0,0.01135963]
[1769506255647,0.0234151,88041.0,88032.0,0.0113595]
[1769506256192,0.0234151,88041.0,88031.0,0.01135963]
[1769506256413,0.0234151,88041.0,88032.0,0.0113595]
[1769506256959,0.21839609,88047.0,88031.0,0.01135963]
[1769506257160,0.33845681,88050.0,88031.0,0.01135963]
[1769506257161,0.36133479,88050.0,88033.0,0.01135937]
[1769506257314,0.36133479,88050.0,88035.0,0.01135911]
[1769506257527,0.33845681,88050.0,88035.0,0.01135911]
[1769506257751,0.02287798,88049.0,88035.0,0.01135911]
[1769506257947,0.02287798,88049.0,88033.0,0.01135937]
[1769506258171,0.02287798,88049.0,88034.0,0.01135924]
[1769506258334,0.02287798,88049.0,88035.0,0.01135911]
[1769506258777,0.02287798,88049.0,88034.0,0.01135924]
[1769506259013,0.02287798,88049.0,88035.0,0.01135911]
[1769506259372,0.02287798,88049.0,88033.0,0.01135937]
[1769506259707,0.24127407,88049.0,88032.0,0.22385059]
[1769506260073,0.24151977,88049.0,88032.0,0.22385059]
[1769506260276,0.33845681,88042.0,88032.0,0.21249109]
[1769506260481,0.02287798,88048.0,88032.0,0.21249109]
[1769506262725,0.02287798,88048.0,88033.0,0.01135937]
[1769506262926,0.0002457,88049.0,88035.0,0.21249109]
[1769506263147,0.0002457,88049.0,88038.0,0.02443928]
[1769506263761,0.0002457,88049.0,88035.0,0.21249109]
[1769506265466,0.0002457,88049.0,88035.0,0.2238502]
[1769506266078,0.0002457,88049.0,88035.0,0.21249109]
[1769506267234,0.0002457,88049.0,88036.0,0.02443928]
[1769506267391,0.0002457,88049.0,88038.0,0.02443928]
[1769506267824,0.0002457,88049.0,88038.0,0.03579801]
[1769506268702,0.0002457,88049.0,88038.0,0.02443928]
[1769506268920,0.00907636,88038.0,88010.0,0.0001941]
[1769506269126,0.00907636,88038.0,88016.0,0.01136157]
[1769506269127,0.33845681,88030.0,88016.0,0.01136157]
[1769506269552,0.33845681,88030.0,88014.0,0.01136182]
[1769506269765,0.33845681,88030.0,88015.0,0.01136169]
[1769506269966,0.33845681,88030.0,88016.0,0.01136157]
[1769506270401,0.33845681,88030.0,88013.0,0.24829232]
[1769506270621,0.33845681,88030.0,88014.0,0.01136182]
[1769506270823,0.33845681,88030.0,88015.0,0.01136169]
[1769506271189,0.33845681,88030.0,88014.0,0.01136182]
[1769506271545,0.33845681,88030.0,88013.0,0.24829232]
[1769506271845,0.33845681,88030.0,88014.0,0.01136182]
[1769506272207,0.33845681,88030.0,88016.0,0.01136157]
[1769506273195,0.33845681,88030.0,88015.0,0.01136169]
[1769506273399,0.33845681,88030.0,88014.0,0.01136182]
[1769506273630,0.36133479,88030.0,88016.0,0.01136157]
[1769506273835,0.3611732,88030.0,88016.0,0.01136157]
[1769506274038,0.36101161,88030.0,88013.0,0.02443928]
[1769506274234,0.5794077,88030.0,88013.0,0.24829232]
[1769506274499,0.5794077,88030.0,88015.0,0.01136169]
[1769506275611,0.5794077,88030.0,88014.0,0.01136182]
[1769506275832,0.5794077,88030.0,88016.0,0.01136157]
[1769506276175,0.5794077,88030.0,88015.0,0.01136169]
[1769506276379,0.5794077,88030.0,88017.0,0.01136144]
[1769506276603,0.5794077,88030.0,88018.0,0.01136131]
[1769506278005,0.36101161,88030.0,88018.0,0.01136131]
[1769506278856,0.36101161,88030.0,88015.0,0.01136169]
[1769506279510,0.36085002,88030.0,88015.0,0.01136169]
[1769506281073,0.36085002,88030.0,88014.0,0.01136182]
[1769506281278,0.36085002,88030.0,88014.0,0.02443928]
[1769506282952,0.36085002,88030.0,88014.0,0.0358011]
[1769506283567,0.36085002,88030.0,88014.0,0.02443928]
[1769506284009,0.22304996,88029.0,88013.0,0.22385304]
[1769506284212,0.24562244,88029.0,88013.0,0.22385304]
[1769506284392,0.02257248,88028.0,88010.0,0.0001941]
[1769506284592,0.33845681,88020.0,88010.0,0.0001941]
[1769506284783,0.55799294,88020.0,88010.0,0.0001941]
[1769506288201,0.21953613,88020.0,88010.0,0.0001941]
[1769506288388,0.55799294,88020.0,88010.0,0.0001941]
[1769506290955,0.02257248,88022.0,88010.0,0.0001941]
[1769506291627,0.21953613,88025.0,88010.0,0.0001941]
[1769506291833,0.11668,88038.0,88010.0,0.0001941]
[1769506291834,0.21953613,88019.0,88010.0,0.0001941]
[1769506292469,0.21937451,88019.0,88010.0,0.0001941]
[1769506294971,0.21921288,88019.0,88010.0,0.0001941]
[1769506295187,0.21872796,88019.0,88010.0,0.0001941]
[1769506296836,0.21872796,88019.0,88001.0,0.07056913]
[1769506297037,0.33845681,88020.0,88001.0,0.0001466]
[1769506297038,0.21953613,88010.0,88001.0,0.0001466]
[1769506298029,0.22666203,88010.0,88001.0,7.33e-05]
[1769506298230,0.21953613,88008.0,88001.0,7.33e-05]
[1769506300502,0.15414687,88008.0,88001.0,7.33e-05]
[1769506305710,0.33845681,88011.0,88001.0,7.33e-05]
[1769506305911,0.55799294,88011.0,88001.0,7.33e-05]
[1769506306325,0.21953613,88010.0,88001.0,7.33e-05]
[1769506306533,0.23116046,88010.0,88000.0,31.03219893]
[1769506308530,0.21953613,88008.0,88000.0,29.39035995]
[1769506308722,0.21953613,88006.0,88000.0,29.38995995]
[1769506308898,0.01612275,88003.0,88000.0,29.38955995]
[1769506309092,0.23565888,88001.0,88000.0,29.38930995]
[1769506309316,0.26808823,88001.0,88000.0,29.38895995]
[1769506309523,0.26808823,88001.0,88000.0,29.14841995]
[1769506309725,0.26808823,88001.0,88000.0,29.14821995]
[1769506309949,0.26808823,88001.0,88000.0,29.14811995]
[1769506310148,0.26808823,88001.0,88000.0,29.14791995]
[1769506310361,0.23565888,88001.0,88000.0,29.14761995]
[1769506310555,0.23565888,88001.0,88000.0,29.14721995]
[1769506310752,0.21953613,88001.0,88000.0,29.14706995]
[1769506310928,0.21953613,88001.0,88000.0,29.14696995]
[1769506311293,0.21953613,88001.0,88000.0,29.14661995]
[1769506311506,0.0206203,88006.0,88000.0,29.14636995]
[1769506311710,0.21953613,88003.0,88000.0,29.14606995]
[1769506311919,0.24015643,88001.0,88000.0,29.14576995]
[1769506312153,0.24015643,88001.0,88000.0,29.14556995]
[1769506312362,0.24015643,88001.0,88000.0,29.14526995]
[1769506312538,0.24015643,88001.0,88000.0,29.14496995]
[1769506312714,0.24015643,88001.0,88000.0,29.14491995]
[1769506312920,0.24714254,88001.0,88000.0,29.14491995]
[1769506313286,0.00698611,88001.0,88000.0,29.14491995]
[1769506313489,0.22652224,88001.0,88000.0,29.14491995]
[1769506313900,0.24909472,88001.0,88000.0,29.14471821]
[1769506316408,0.24909472,88001.0,88000.0,29.0268647]
[1769506317309,0.24210861,88001.0,88000.0,29.0268647]
[1769506318895,0.03590771,88005.0,88001.0,0.01]
[1769506319091,0.28412284,88005.0,88001.0,0.01]
[1769506319295,0.02394628,88009.0,88000.0,29.0268647]
[1769506319525,0.02394628,88005.0,88000.0,29.0268647]
[1769506319736,0.02394628,88003.0,88000.0,29.0268647]
[1769506319975,0.02394628,88001.0,88000.0,29.0268147]
[1769506320183,0.27216141,88001.0,88000.0,29.0265147]
[1769506320374,0.02394628,88001.0,88000.0,29.0262647]
[1769506320547,0.02394628,88001.0,88000.0,29.0259147]
[1769506320772,0.02394628,88001.0,88000.0,29.0256147]
[1769506320972,0.02394628,88001.0,88000.0,29.0253647]
[1769506321177,0.02394628,88001.0,88000.0,29.0252147]
[1769506321380,0.27216141,88001.0,88000.0,29.0250147]
[1769506321579,0.02394628,88009.0,88000.0,29.0250147]
[1769506321816,0.24821513,88008.0,88000.0,29.0250147]
[1769506321984,0.02394628,88007.0,88000.0,29.0250147]
[1769506322186,0.02394628,88005.0,88000.0,29.0250147]
[1769506322391,0.02394628,88003.0,88000.0,29.0250147]
[1769506322595,0.02394628,88002.0,88000.0,29.0246647]
[1769506322795,0.02394628,88001.0,88000.0,29.0244147]
[1769506323000,0.02394628,88001.0,88000.0,29.0240647]
[1769506323218,0.02394628,88001.0,88000.0,29.02361471]
[1769506323386,0.02394628,88001.0,88000.0,29.02336471]
[1769506323578,0.02394628,88001.0,88000.0,29.02316471]
[1769506323808,0.02394628,88001.0,88000.0,29.02306471]
[1769506324010,0.02394628,88001.0,88000.0,29.02291471]
[1769506324253,0.02394628,88001.0,88000.0,29.02271471]
[1769506324386,0.02394628,88001.0,88000.0,29.02256471]
[1769506324616,0.02394628,88001.0,88000.0,29.02226471]
[1769506324851,0.02394628,88001.0,88000.0,29.02201471]
[1769506325062,0.02394628,88001.0,88000.0,29.02186471]
[1769506325273,0.00979497,88001.0,88000.0,29.02161471]
[1769506325496,0.26766997,88002.0,88000.0,29.02126471]
[1769506325709,0.26766997,88002.0,88000.0,29.02106471]
[1769506325926,0.26766997,88002.0,88000.0,29.02101471]
[1769506326308,0.26766997,88002.0,88000.0,29.02071471]
[1769506326309,0.29443697,88002.0,88000.0,29.02071471]
[1769506326474,0.26766997,88002.0,88000.0,29.02046471]
[1769506326686,0.11672,88019.0,88000.0,29.02011471]
[1769506326844,0.24821513,88016.0,88000.0,29.02011471]
[1769506327068,0.11294878,88015.0,88001.0,0.25162657]
[1769506327268,0.02409288,88023.0,88006.0,0.2758387]
[1769506327669,0.02044561,88032.0,88012.0,0.25162657]
[1769506327867,0.26866074,88032.0,88012.0,0.2589243]
[1769506328078,0.26866074,88032.0,88012.0,0.2361546]
[1769506328278,0.26866074,88032.0,88012.0,0.21338489]
[1769506328496,0.2867572,88031.0,88012.0,0.19061518]
[1769506328700,0.2867572,88031.0,88012.0,0.16783409]
[1769506328861,0.24821513,88029.0,88012.0,0.14506438]
[1769506329247,0.26851414,88029.0,88012.0,0.09952497]
[1769506329448,0.02394628,88028.0,88012.0,0.07675526]
[1769506329680,0.2883556,88027.0,88012.0,0.00144242]
[1769506329841,0.02394628,88026.0,88007.0,0.22885687]
[1769506330365,0.02394628,88025.0,88007.0,0.22885687]
[1769506331262,0.27216141,88025.0,88007.0,0.22885687]
[1769506331498,0.02394628,88024.0,88007.0,0.22885687]
[1769506331653,0.02394628,88023.0,88007.0,0.22885687]
[1769506335711,0.02394628,88023.0,88007.0,0.2285153]
[1769506336960,0.02394628,88023.0,88007.0,0.22564617]
[1769506348817,0.02394628,88023.0,88010.0,0.3387697]
[1769506349025,0.04691941,88031.0,88011.0,0.26610305]
[1769506349260,0.05141689,88029.0,88011.0,0.26610305]
[1769506349504,0.1130574,88028.0,88011.0,0.26610305]
[1769506349704,0.1130574,88027.0,88011.0,0.26610305]
[1769506349967,0.16447429,88027.0,88011.0,0.26610305]
[1769506350184,0.05141689,88027.0,88011.0,0.26610305]
[1769506350387,0.04306126,88026.0,88011.0,0.26610305]
[1769506351260,0.05141689,88025.0,88011.0,0.26610305]
[1769506356436,0.11320804,88024.0,88011.0,0.26610305]
[1769506356673,0.05141689,88025.0,88011.0,0.26610305]
[1769506356905,0.11320809,88024.0,88011.0,0.26610305]
[1769506357144,0.05141689,88025.0,88011.0,0.26610305]
[1769506357369,0.113248,88024.0,88011.0,0.26610305]
[1769506357590,0.113248,88023.0,88011.0,0.26610305]
[1769506357823,0.12531946,88025.0,88011.0,0.26610305]
[1769506358070,0.113248,88024.0,88011.0,0.26610305]
[1769506358279,0.113248,88023.0,88011.0,0.26610305]
[1769506358504,0.08857503,88023.0,88011.0,0.26610305]
[1769506359626,0.05141689,88025.0,88011.0,0.24654285]
[1769506359859,0.11323212,88024.0,88011.0,0.22377288]
[1769506360020,0.05141689,88025.0,88011.0,0.20100291]
[1769506360226,0.05141689,88025.0,88011.0,0.17823295]
[1769506360585,0.05141689,88025.0,88011.0,0.15546298]
[1769506360742,0.05141689,88025.0,88011.0,0.13269301]
[1769506360921,0.06555384,88024.0,88011.0,0.10992305]
[1769506361123,0.06555384,88024.0,88011.0,0.08715308]
[1769506361339,0.06555384,88024.0,88011.0,0.06438311]
[1769506361522,0.06555384,88024.0,88011.0,0.04161315]
[1769506361723,0.06555384,88024.0,88011.0,0.01884318]
[1769506361930,0.07210923,88023.0,88005.0,0.00743621]
[1769506362123,0.07210923,88023.0,88006.0,0.24332143]
[1769506362351,0.07210923,88023.0,88006.0,0.25468429]
[1769506362575,0.14151639,88023.0,88006.0,0.26610305]
[1769506363527,0.14151639,88023.0,88001.0,0.0001466]
[1769506363528,0.3387697,88020.0,88001.0,0.0001466]
[1769506363728,0.26535184,88011.0,88001.0,0.0001466]
[1769506364027,0.07165604,88010.0,88001.0,0.0001466]
[1769506369522,0.26535184,88016.0,88000.0,27.81434977]
[1769506369523,0.26535184,88009.0,88000.0,27.81434977]
[1769506369738,0.26535184,88005.0,88000.0,27.6859472]
[1769506369969,0.26535184,88001.0,88000.0,27.34786539]
[1769506370177,0.36579221,88001.0,88000.0,27.24783173]
[1769506370374,0.36579221,88001.0,88000.0,27.22455895]
[1769506370587,0.36579221,88001.0,88000.0,27.20142477]
[1769506370797,0.36579221,88001.0,88000.0,27.17840198]
[1769506371004,0.36579221,88001.0,88000.0,27.15547918]
[1769506371214,0.36579221,88001.0,88000.0,27.13244501]
[1769506371419,0.36579221,88001.0,88000.0,27.10937221]
[1769506371661,0.36579221,88001.0,88000.0,27.08623803]
[1769506371874,0.36579221,88001.0,88000.0,27.04028106]
[1769506372074,0.26535184,88009.0,88000.0,27.01725827]
[1769506372273,0.26535184,88007.0,88000.0,26.99418548]
[1769506372450,0.03695259,88004.0,88000.0,26.99373548]
[1769506372657,0.30230443,88001.0,88000.0,26.9706513]
[1769506372819,0.30230443,88001.0,88000.0,26.94752851]
[1769506373025,0.30230443,88001.0,88000.0,26.92455571]
[1769506373224,0.33253487,88001.0,88000.0,26.90172154]
[1769506373426,0.33253487,88001.0,88000.0,26.87894874]
[1769506373671,0.33253487,88001.0,88000.0,26.85617595]
[1769506373868,0.33253487,88001.0,88000.0,26.83339177]
[1769506374072,0.33253487,88001.0,88000.0,26.81061898]
[1769506374304,0.33253487,88001.0,88000.0,26.78784619]
[1769506374505,0.33253487,88001.0,88000.0,26.76506201]
[1769506374722,0.33253487,88001.0,88000.0,26.74228922]
[1769506374723,0.19678605,88001.0,88000.0,26.74228922]
[1769506374967,0.02338519,88008.0,88000.0,26.71950504]
[1769506375179,0.33891808,88005.0,88000.0,26.69673224]
[1769506375309,0.33891808,88003.0,88000.0,26.67395945]
[1769506375519,0.33891808,88001.0,88000.0,26.65117527]
[1769506375722,0.36230327,88001.0,88000.0,26.62840248]
[1769506375941,0.3985336,88001.0,88000.0,26.6056183]
[1769506376198,0.3985336,88001.0,88000.0,26.58284551]
[1769506376334,0.3985336,88001.0,88000.0,26.56007272]
[1769506376525,0.3985336,88001.0,88000.0,26.53728854]
[1769506376929,0.3985336,88001.0,88000.0,26.51451575]
[1769506377176,0.3985336,88001.0,88000.0,26.49174295]
[1769506377394,0.3985336,88001.0,88000.0,26.46895877]
[1769506377590,0.3985336,88001.0,88000.0,26.44618598]
[1769506377794,0.3985336,88001.0,88000.0,26.42341319]
[1769506378036,0.3985336,88001.0,88000.0,26.40062901]
[1769506378238,0.3985336,88001.0,88000.0,26.37785622]
[1769506378528,0.3985336,88001.0,88000.0,26.33229925]
[1769506378736,0.3985336,88001.0,88000.0,26.30952645]
[1769506378940,0.05961552,88001.0,88000.0,26.28674228]
[1769506379095,0.02338519,88001.0,88000.0,26.26396948]
[1769506379299,0.02338519,88001.0,88000.0,26.24119669]
[1769506379528,0.02338519,88001.0,88000.0,26.21841251]
[1769506379731,0.02338519,88001.0,88000.0,26.19563972]
[1769506379929,0.02338519,88001.0,88000.0,26.17286693]
[1769506380126,0.02338519,88005.0,88000.0,26.15008275]
[1769506380334,0.02338519,88009.0,88000.0,26.12730996]
[1769506380530,0.36230327,88008.0,88000.0,26.10453716]
[1769506380710,0.33891808,88008.0,88000.0,26.08176437]
[1769506380907,0.36230327,88006.0,88000.0,26.08176437]
[1769506381728,0.02338519,88006.0,88000.0,26.08176437]
[1769506381937,0.03225896,88005.0,88000.0,26.08176437]
[1769506382544,0.29920443,88010.0,88000.0,26.08176437]
[1769506384325,0.32258962,88010.0,88000.0,26.08176437]
[1769506385843,0.29920443,88010.0,88000.0,26.08176437]
[1769506386045,0.02338519,88009.0,88000.0,26.08176437]
[1769506386251,0.06615077,88008.0,88000.0,26.08176437]
[1769506388030,0.06615077,88008.0,88000.0,26.07945933]
[1769506389699,0.06615077,88008.0,88000.0,26.42345193]
[1769506390422,0.11308599,88007.0,88000.0,26.07945933]
[1769506390584,0.06615077,88008.0,88000.0,26.07945933]
[1769506390787,0.18351894,88007.0,88000.0,26.07345933]
[1769506391031,0.11309161,88006.0,88000.0,26.02866716]
[1769506391233,0.07042733,88007.0,88000.0,25.97834214]
[1769506391464,0.11311224,88006.0,88000.0,25.94460807]
[1769506391578,0.29920443,88010.0,88000.0,25.94460807]
[1769506391579,0.11311224,88005.0,88000.0,26.26064436]
[1769506391777,0.29920443,88010.0,88000.0,26.26039436]
[1769506391986,0.11309523,88009.0,88000.0,26.25999436]
[1769506392195,0.11309523,88008.0,88000.0,26.25969436]
[1769506392396,0.16336128,88007.0,88000.0,26.25944436]
[1769506392596,0.11309523,88006.0,88000.0,26.25924436]
[1769506392840,0.11309523,88006.0,88000.0,26.25909436]
[1769506393146,0.11309523,88006.0,88000.0,26.25869436]
[1769506393367,0.11309523,88006.0,88000.0,26.25839436]
[1769506393572,0.05529265,88005.0,88000.0,26.25824436]
[1769506393760,0.11309523,88004.0,88000.0,26.25804436]
[1769506393906,0.11309523,88004.0,88000.0,26.25774436]
[1769506394108,0.11309523,88004.0,88000.0,26.25749436]
[1769506394307,0.11309523,88004.0,88000.0,26.25739436]
[1769506394505,0.05579531,88003.0,88000.0,26.25729436]
[1769506394711,0.11309523,88002.0,88000.0,26.25724436]
[1769506395565,0.03913564,88002.0,88000.0,25.91325176]
[1769506395773,0.05579531,88003.0,88001.0,0.3439926]
[1769506398267,0.29920443,88010.0,88001.0,0.33575862]
[1769506398488,0.05297104,88009.0,88001.0,0.33575862]
[1769506399247,0.338772,88020.0,88003.0,0.3439926]
[1769506399446,0.02353179,88041.0,88005.0,0.01136299]
[1769506399629,0.02353179,88041.0,88013.0,0.02474574]
[1769506399630,0.338772,88040.0,88013.0,0.02474574]
[1769506399832,0.03389186,88040.0,88015.0,0.02474574]
[1769506400041,0.338772,88030.0,88019.0,0.02474574]
[1769506400242,0.338772,88030.0,88020.0,0.3439926]
[1769506400657,0.01,88020.0,88006.0,0.02474574]
[1769506400864,0.348772,88020.0,88007.0,0.3439926]
[1769506401306,0.348772,88020.0,88007.0,0.36888494]
[1769506401512,0.41754101,88020.0,88009.0,0.39115649]
[1769506401723,0.41754101,88020.0,88009.0,0.4138953]
[1769506401927,0.40754101,88020.0,88009.0,0.4138953]
[1769506402542,0.40754101,88020.0,88009.0,0.4140419]
[1769506405118,0.40754101,88020.0,88002.0,0.02259319]
[1769506405354,0.04076876,88019.0,88005.0,0.41538094]
[1769506405562,0.04076876,88019.0,88007.0,0.43797413]
[1769506410660,0.04076876,88019.0,88007.0,0.41538094]
[1769506410874,0.40754101,88020.0,88009.0,0.41538094]
[1769506421455,0.40737946,88020.0,88009.0,0.41538094]
[1769506422214,0.40737946,88020.0,88008.0,0.02259319]
[1769506422422,0.02418003,88018.0,88000.0,25.91325176]
[1769506422633,0.338772,88010.0,88000.0,25.91325176]
[1769506423223,0.41670394,88018.0,88000.0,25.91325176]
[1769506423419,0.49911228,88018.0,88001.0,0.02259319]
[1769506423667,0.08240834,88018.0,88003.0,0.02259319]
[1769506424009,0.08240834,88018.0,88003.0,0.43797413]
[1769506424664,0.01135795,88044.0,88009.0,0.41538094]
[1769506424872,0.04547793,88046.0,88008.0,0.338772]
[1769506424873,0.36295203,88040.0,88012.0,0.02259319]
[1769506425080,0.11672,88041.0,88001.0,0.10224391]
[1769506425081,0.338772,88030.0,88014.0,0.02259319]
[1769506426960,0.338772,88030.0,88002.0,0.20760041]
[1769506427168,0.39252391,88027.0,88004.0,0.02259319]
[1769506427377,0.02418003,88026.0,88006.0,0.43797413]
[1769506427585,0.02418003,88026.0,88007.0,0.41538094]
[1769506427784,0.0573089,88025.0,88009.0,0.02259319]
[1769506428039,0.0573089,88025.0,88010.0,0.43797413]
[1769506429191,0.05714735,88025.0,88010.0,0.43797413]
[1769506429632,0.05714735,88025.0,88002.0,0.11672]
[1769506429849,0.338772,88030.0,88004.0,0.02259319]
[1769506429850,0.42840136,88024.0,88004.0,0.02259319]
[1769506430023,0.338772,88020.0,88004.0,0.43797413]
[1769506430976,0.338772,88020.0,88000.0,25.91325176]
[1769506430977,0.41670394,88019.0,88000.0,25.91325176]
[1769506431422,0.41670394,88019.0,88000.0,25.93584495]
[1769506432674,0.39252391,88019.0,88000.0,25.93584495]
[1769506432856,0.41670394,88018.0,88000.0,25.93584495]
[1769506433056,0.41654237,88018.0,88000.0,25.93584495]
[1769506433754,0.4163808,88018.0,88000.0,25.93584495]
[1769506434177,0.39252391,88018.0,88000.0,25.93584495]
[1769506434342,0.44416695,88017.0,88000.0,25.93584495]
[1769506434963,0.05714735,88019.0,88002.0,0.02419086]
[1769506435184,0.05714735,88019.0,88003.0,0.39803054]
[1769506435527,0.05714735,88019.0,88004.0,0.02419086]
[1769506435528,0.05698578,88019.0,88004.0,0.02419086]
[1769506436055,0.0568242,88019.0,88004.0,0.02419086]
[1769506436253,0.01169742,88018.0,88002.0,0.39803054]
[1769506436452,0.01169742,88018.0,88004.0,0.39803054]
[1769506436829,0.01169742,88018.0,88004.0,0.4222214]
[1769506437026,0.01169742,88018.0,88004.0,0.02419086]
[1769506437251,0.0568242,88017.0,88004.0,0.02419086]
[1769506437835,0.33865738,88020.0,88004.0,0.02419086]
[1769506438261,0.33865738,88020.0,88000.0,25.91325176]
[1769506438262,0.41948015,88019.0,88000.0,25.91325176]
[1769506438467,0.41948015,88017.0,88000.0,25.91325176]
[1769506439081,0.41948015,88017.0,88000.0,25.93744262]
[1769506440122,0.44416695,88017.0,88000.0,25.93744262]
[1769506440328,0.0246868,88016.0,88000.0,25.91325176]
[1769506440471,0.41948015,88013.0,88000.0,25.91325176]
[1769506441038,0.41948015,88013.0,88000.0,26.25190914]
[1769506442112,0.0246868,88014.0,88000.0,26.25190914]
[1769506442320,0.0246868,88020.0,88001.0,0.39803054]
[1769506442462,0.21990256,88036.0,88010.0,0.33865738]
[1769506442463,0.12735443,88019.0,88010.0,0.33865738]
[1769506442662,0.11672,88021.0,88010.0,0.36284824]
[1769506442880,0.11305264,88020.0,88010.0,0.36284824]
[1769506443144,0.11672,88021.0,88010.0,0.02419086]
[1769506445850,0.1163968,88021.0,88010.0,0.02419086]
[1769506446909,0.33865738,88020.0,88010.0,0.02419086]
[1769506447121,0.1163968,88021.0,88010.0,0.02419086]
[1769506448225,0.1699845,88021.0,88010.0,0.02419086]
[1769506449464,0.1699845,88021.0,88005.0,0.02419086]
[1769506454484,0.0535877,88021.0,88005.0,0.02419086]
[1769506454653,0.0535877,88021.0,88006.0,0.4222214]
[1769506454863,0.0535877,88021.0,88007.0,0.02419086]
[1769506455076,0.01493392,88020.0,88008.0,0.39803054]
[1769506455270,0.41948015,88035.0,88012.0,0.02419086]
[1769506455479,0.0002542,88039.0,88012.0,0.02419086]
[1769506455480,0.11320318,88034.0,88012.0,0.02419086]
[1769506455670,0.11320318,88033.0,88015.0,0.39803054]
[1769506455914,0.11320318,88032.0,88017.0,0.4222214]
[1769506456068,0.11320318,88031.0,88017.0,0.4222214]
[1769506456284,0.53624015,88036.0,88017.0,0.4222214]
[1769506456285,0.11320318,88030.0,88017.0,0.4222214]
[1769506456508,0.11320318,88029.0,88017.0,0.4222214]
[1769506456693,0.41948015,88035.0,88017.0,0.4222214]